bitfinex-derivatives/quotes_BTCF0:USTF0_20240820
["timestamp","ask_amount","ask_price","bid_price","bid_amount"]
[1724172138637,0.05052878,58924.0,58914.0,0.3608]
[1724172138837,0.05052878,58926.0,58922.0,0.067869]
[1724172139039,0.3525,58924.0,58922.0,0.067869]
[1724172139239,0.3525,58924.0,58923.0,0.067869]
[1724172139941,1.22242,58924.0,58918.0,0.067874]
[1724172140131,0.3525,58919.0,58918.0,0.067874]
[1724172140636,0.06787,58922.0,58916.0,0.001]
[1724172140831,0.71574001,58924.0,58914.0,0.3608]
[1724172141037,0.3608,58924.0,58923.0,0.067869]
[1724172141340,0.3608,58924.0,58914.0,0.3608]
[1724172141533,0.3608,58924.0,58923.0,0.067869]
[1724172142436,0.0002547,58925.0,58924.0,0.067867]
[1724172143649,0.0002547,58925.0,58924.0,0.068867]
[1724172145842,0.0012547,58925.0,58924.0,0.069867]
[1724172150344,0.0012547,58925.0,58924.0,1.046854]
[1724172150547,0.0012547,58925.0,58924.0,1.114721]
[1724172151546,0.0002547,58925.0,58924.0,1.113721]
[1724172151746,0.0012547,58925.0,58924.0,1.114721]
[1724172152051,0.0012547,58925.0,58924.0,4.884721]
[1724172152756,0.0012547,58925.0,58924.0,4.883721]
[1724172153147,0.0012547,58925.0,58924.0,0.068867]
[1724172153339,0.0691207,58925.0,58924.0,0.068867]
[1724172153650,0.1369867,58925.0,58924.0,0.001]
[1724172153949,0.1369867,58925.0,58901.0,0.067893]
[1724172153950,0.067878,58915.0,58913.0,0.3608]
[1724172154142,0.067881,58913.0,58912.0,0.067881]
[1724172154342,0.067881,58913.0,58912.0,0.428681]
[1724172154554,0.067881,58913.0,58912.0,0.3608]
[1724172155252,0.10183455,58913.0,58907.0,0.04337363]
[1724172155443,0.067885,58910.0,58909.0,0.067884]
[1724172155638,0.16971955,58910.0,58909.0,0.067884]
[1724172155847,0.33896641,58910.0,58909.0,0.067884]
[1724172156043,0.10183455,58910.0,58906.0,0.067888]
[1724172156249,0.063888,58906.0,58905.0,0.428689]
[1724172156452,0.24775627,58906.0,58905.0,0.428689]
[1724172156650,0.13821275,58906.0,58905.0,0.067889]
[1724172156849,0.24376409,58906.0,58905.0,0.067889]
[1724172157042,0.09266284,58906.0,58905.0,0.067889]
[1724172157246,0.07432475,58906.0,58905.0,0.428689]
[1724172157446,0.03277484,58906.0,58905.0,0.428689]
[1724172157647,0.03177484,58906.0,58905.0,0.428689]
[1724172157854,0.07332475,58906.0,58905.0,0.428689]
[1724172158159,0.18298144,58906.0,58905.0,0.428689]
[1724172158456,0.07732475,58906.0,58905.0,0.428689]
[1724172159154,0.07332475,58906.0,58905.0,0.429689]
[1724172159358,0.07332475,58906.0,58905.0,0.938969]
[1724172159656,0.09662985,58906.0,58905.0,0.429689]
[1724172159848,0.09662985,58906.0,58905.0,0.938969]
[1724172160049,0.09362985,58906.0,58905.0,0.429689]
[1724172160250,0.04154989,58906.0,58905.0,0.432689]
[1724172160756,0.04154989,58906.0,58905.0,0.431689]
[1724172161249,0.16151785,58906.0,58905.0,0.070889]
[1724172161852,0.16151785,58906.0,58905.0,0.003]
[1724172162042,0.16151785,58906.0,58905.0,0.004]
[1724172162245,0.37611131,58906.0,58893.0,0.067902]
[1724172162453,0.3525,58896.0,58886.0,0.3608]
[1724172162753,0.067904,58892.0,58887.0,3.77]
[1724172162950,0.23511531,58892.0,58887.0,3.77]
[1724172163349,0.23511531,58892.0,58888.0,0.05057826]
[1724172163350,0.067904,58892.0,58888.0,0.05057826]
[1724172163854,0.066904,58892.0,58888.0,0.05057826]
[1724172164357,0.067904,58892.0,58887.0,3.82057826]
[1724172164655,0.070904,58892.0,58887.0,3.82057826]
[1724172164858,0.08180394,58892.0,58887.0,3.88848826]
[1724172165058,0.08180394,58892.0,58888.0,0.05057826]
[1724172165364,0.23180394,58892.0,58887.0,3.88848826]
[1724172165747,1.20910794,58892.0,58887.0,3.82057826]
[1724172166047,1.20910794,58892.0,58886.0,0.3610547]
[1724172166048,1.43530398,58892.0,58886.0,0.0002547]
[1724172166248,0.42871,58887.0,58886.0,0.0002547]
[1724172166456,0.5108,58887.0,58873.0,0.11850426]
[1724172166659,0.5108,58887.0,58867.0,0.445299]
[1724172166660,0.067925,58874.0,58872.0,0.05057826]
[1724172166859,0.0001759,58873.0,58870.0,0.05057826]
[1724172167156,0.0001759,58873.0,58869.0,0.05057826]
[1724172167348,0.0001759,58873.0,58867.0,0.3608]
[1724172167349,0.0670989,58876.0,58872.0,0.067927]
[1724172167550,0.3525,58877.0,58863.0,0.12487826]
[1724172167551,0.3608,58873.0,58863.0,0.12487826]
[1724172167748,0.3608,58873.0,58859.0,0.05057826]
[1724172167749,0.425732,58868.0,58859.0,0.05057826]
[1724172168150,0.424732,58868.0,58859.0,0.05057826]
[1724172168359,0.424732,58868.0,58856.0,0.42832836]
[1724172168360,0.06798591,58867.0,58856.0,0.41137826]
[1724172168555,5.291e-05,58867.0,58860.0,0.06794]
[1724172168752,0.067938,58863.0,58860.0,0.06794]
[1724172168949,5.291e-05,58867.0,58853.0,0.12127826]
[1724172168950,0.3608,58861.0,58853.0,0.0707]
[1724172169155,0.067948,58855.0,58853.0,0.067949]
[1724172169358,5.291e-05,58854.0,58853.0,0.067949]
[1724172169566,0.06800091,58854.0,58853.0,0.067949]
[1724172169750,0.35785291,58856.0,58854.0,0.067948]
[1724172169953,0.35785291,58856.0,58851.0,3.77]
[1724172170154,0.06795,58852.0,58850.0,0.067952]
[1724172170365,0.06495,58852.0,58850.0,0.067952]
[1724172170952,0.06495,58852.0,58845.0,0.0707]
[1724172170953,0.064959,58845.0,58842.0,0.0001552]
[1724172171164,0.3608,58851.0,58844.0,0.067959]
[1724172171365,0.3608,58851.0,58842.0,0.3609552]
[1724172171366,0.067955,58848.0,58842.0,0.3609552]
[1724172171663,0.064956,58847.0,58842.0,0.3609552]
[1724172172164,0.064956,58847.0,58845.0,0.067958]
[1724172173754,0.064956,58847.0,58845.0,0.069958]
[1724172173953,0.07575397,58847.0,58845.0,0.069958]
[1724172174165,0.07575397,58847.0,58845.0,0.070958]
[1724172174665,0.428757,58846.0,58845.0,0.003]
[1724172175564,0.37141941,58846.0,58845.0,0.003]
[1724172175759,0.01061941,58846.0,58845.0,0.070958]
[1724172175959,0.3610547,58851.0,58847.0,0.067955]
[1724172176862,0.3718655,58851.0,58847.0,0.067955]
[1724172177062,0.067955,58848.0,58847.0,0.067955]
[1724172177264,0.067955,58848.0,58847.0,0.069955]
[1724172177466,0.067955,58848.0,58847.0,0.070955]
[1724172178765,0.217955,58848.0,58847.0,0.070955]
[1724172180771,0.37426551,58851.0,58850.0,0.067953]
[1724172181068,0.0002547,58851.0,58850.0,0.067953]
[1724172181665,0.0002547,58851.0,58850.0,3.837953]
[1724172181961,0.0002547,58851.0,58850.0,3.905906]
[1724172182269,0.0002547,58851.0,58850.0,3.837953]
[1724172182459,0.0002547,58851.0,58850.0,3.84864838]
[1724172182860,0.0002547,58851.0,58850.0,3.84964838]
[1724172183266,0.0002547,58851.0,58850.0,3.85164838]
[1724172184770,0.0002547,58851.0,58850.0,3.840953]
[1724172185975,0.0002547,58851.0,58850.0,0.003]
[1724172185976,0.0682067,58851.0,58850.0,0.003]
[1724172186471,0.0682067,58851.0,58850.0,3.840953]
[1724172186769,0.0002547,58851.0,58850.0,3.840953]
[1724172187675,0.0682067,58851.0,58850.0,0.070953]
[1724172187868,0.2382067,58851.0,58850.0,0.070953]
[1724172188262,0.0682067,58851.0,58850.0,0.070953]
[1724172189080,0.0002547,58851.0,58850.0,0.070953]
[1724172189575,0.0002547,58851.0,58850.0,3.840953]
[1724172191677,0.0002547,58851.0,58850.0,3.908906]
[1724172192973,0.3608,58873.0,58850.0,5.04356]
[1724172193168,0.067936,58865.0,58862.0,0.067939]
[1724172193566,0.067936,58865.0,58864.0,0.067937]
[1724172194373,0.07869541,58865.0,58864.0,0.067937]
[1724172194575,0.01075941,58865.0,58864.0,0.067937]
[1724172194768,0.3608,58873.0,58872.0,0.067927]
[1724172195176,0.3608,58873.0,58872.0,3.837927]
[1724172195680,0.37164814,58873.0,58872.0,3.837927]
[1724172197170,0.37764814,58873.0,58872.0,3.837927]
[1724172197379,0.44557514,58873.0,58872.0,3.837927]
[1724172197882,0.45057514,58873.0,58872.0,3.837927]
[1724172198484,0.45257514,58873.0,58872.0,3.838927]
[1724172199275,0.09177514,58873.0,58872.0,3.838927]
[1724172199677,0.09377514,58873.0,58872.0,3.839927]
[1724172201491,0.02584814,58873.0,58872.0,3.839927]
[1724172201680,0.02137475,58873.0,58872.0,5.246143]
[1724172201884,0.015,58873.0,58872.0,5.29672126]
[1724172202185,0.015,58873.0,58872.0,5.31367136]
[1724172202373,0.015,58873.0,58872.0,5.246143]
[1724172203085,0.015,58873.0,58872.0,5.32411024]
[1724172203283,0.015,58873.0,58872.0,5.25672029]
[1724172203785,0.015,58873.0,58872.0,5.30652029]
[1724172204694,0.015,58873.0,58872.0,5.30552029]
[1724172204695,0.008,58873.0,58872.0,5.30552029]
[1724172204984,0.0002547,58878.0,58877.0,0.135844]
[1724172205188,0.0002547,58878.0,58877.0,0.496644]
[1724172205390,0.3608,58889.0,58888.0,0.067909]
[1724172205791,0.3608,58889.0,58880.0,0.067918]
[1724172205792,0.067908,58890.0,58889.0,0.067908]
[1724172205985,0.067908,58890.0,58889.0,3.837908]
[1724172207490,0.1006972,58890.0,58889.0,3.837908]
[1724172207885,0.14226531,58890.0,58889.0,3.838908]
[1724172208187,0.10769729,58890.0,58889.0,3.771]
[1724172208483,0.067913,58885.0,58884.0,0.0002547]
[1724172208689,0.10070229,58885.0,58884.0,0.0002547]
[1724172208892,0.10070229,58885.0,58884.0,3.7702547]
[1724172209285,0.10070229,58885.0,58884.0,3.8381677]
[1724172209493,0.78335619,58885.0,58884.0,3.7702547]
[1724172209684,0.78335619,58885.0,58881.0,0.067917]
[1724172209685,0.067917,58882.0,58881.0,0.067917]
[1724172209887,0.09970629,58882.0,58881.0,0.067917]
[1724172210087,0.09970629,58882.0,58881.0,3.77]
[1724172210293,0.09870629,58882.0,58881.0,3.77]
[1724172210488,0.16662329,58882.0,58881.0,3.77]
[1724172210697,0.067922,58877.0,58876.0,0.0681777]
[1724172210889,0.09971129,58877.0,58876.0,0.0681777]
[1724172211201,0.09971129,58877.0,58876.0,3.8381777]
[1724172211501,0.09771129,58877.0,58876.0,3.8381777]
[1724172211883,0.03278929,58877.0,58876.0,3.8381777]
[1724172212089,0.03978929,58877.0,58876.0,3.8391777]
[1724172212691,0.17253833,58877.0,58876.0,3.9071007]
[1724172212896,0.17479481,58877.0,58876.0,3.9071007]
[1724172213104,0.04879107,58877.0,58876.0,3.9081007]
[1724172214502,0.20067337,58877.0,58876.0,3.9081007]
[1724172214698,0.04879107,58877.0,58876.0,3.9081007]
[1724172215497,0.016,58877.0,58876.0,3.8401777]
[1724172216507,0.512644,58877.0,58876.0,0.0022547]
[1724172216707,0.512644,58877.0,58871.0,0.067928]
[1724172216708,0.067928,58872.0,58871.0,0.067928]
[1724172217503,0.067928,58872.0,58869.0,3.77]
[1724172217504,0.016,58877.0,58869.0,3.77]
[1724172217703,0.016,58877.0,58876.0,0.067923]
[1724172218096,0.067921,58879.0,58878.0,0.067921]
[1724172218301,0.237921,58879.0,58878.0,0.067921]
[1724172218999,0.067926,58874.0,58873.0,0.3608]
[1724172219205,0.06793,58870.0,58869.0,3.77]
[1724172219499,0.067932,58868.0,58867.0,0.3608]
[1724172219697,0.067932,58868.0,58867.0,0.428734]
[1724172220110,0.067932,58868.0,58867.0,4.198734]
[1724172221414,0.067929,58871.0,58870.0,0.067929]
[1724172221917,0.066929,58871.0,58870.0,0.067929]
[1724172222506,0.06166672,58873.0,58867.0,3.771]
[1724172222811,0.01026672,58873.0,58872.0,0.067928]
[1724172223001,0.06751734,58878.0,58877.0,0.067922]
[1724172223200,0.3608,58879.0,58872.0,0.067928]
[1724172223400,0.37111135,58879.0,58873.0,0.0493]
[1724172223715,0.37111135,58879.0,58878.0,0.067921]
[1724172223912,0.43903135,58879.0,58878.0,0.067921]
[1724172224415,0.44403135,58879.0,58878.0,0.067921]
[1724172225109,0.44403135,58879.0,58878.0,0.068921]
[1724172225311,0.45503135,58879.0,58878.0,0.068921]
[1724172226111,0.46003135,58879.0,58878.0,0.069921]
[1724172226312,0.09923135,58879.0,58878.0,0.069921]
[1724172227012,0.03131135,58879.0,58878.0,0.069921]
[1724172227316,0.021,58879.0,58878.0,0.137842]
[1724172227713,0.021,58879.0,58878.0,0.20523418]
[1724172228016,0.021,58879.0,58878.0,3.907842]
[1724172228813,0.021,58879.0,58878.0,3.97523418]
[1724172230514,0.021,58879.0,58878.0,3.907842]
[1724172230515,0.05379018,58879.0,58878.0,3.907842]
[1724172230708,0.20626773,58879.0,58878.0,3.907842]
[1724172231520,0.20626727,58879.0,58878.0,3.907842]
[1724172232113,0.05378972,58879.0,58878.0,3.907842]
[1724172232920,0.20626727,58879.0,58878.0,3.907842]
[1724172233711,0.05378972,58879.0,58878.0,3.907842]
[1724172233913,0.20626837,58879.0,58878.0,3.907842]
[1724172234223,0.05378972,58879.0,58878.0,3.907842]
[1724172234520,0.20626837,58879.0,58878.0,3.907842]
[1724172235017,0.09535849,58879.0,58878.0,3.839921]
[1724172235216,0.16327849,58879.0,58878.0,3.839921]
[1724172235521,0.21277849,58879.0,58878.0,3.839921]
[1724172235712,0.43069849,58879.0,58878.0,0.069921]
[1724172236020,0.067927,58874.0,58873.0,0.067927]
[1724172236316,0.50309792,58874.0,58873.0,3.837927]
[1724172236520,0.68950466,58874.0,58873.0,3.837927]
[1724172236818,0.50309792,58874.0,58873.0,3.837927]
[1724172237316,0.50309792,58874.0,58873.0,0.002]
[1724172237317,1.8695822,58874.0,58873.0,0.002]
[1724172237510,2.0137,58874.0,58858.0,0.0507697]
[1724172237815,0.3608,58859.0,58858.0,0.067944]
[1724172238016,0.42860421,58859.0,58858.0,0.067944]
[1724172238411,0.3598,58859.0,58858.0,0.067944]
[1724172238809,0.3598,58859.0,58856.0,3.77]
[1724172239020,0.0667773,58857.0,58856.0,3.77]
[1724172239315,0.3598,58859.0,58856.0,3.77]
[1724172239512,0.3598,58859.0,58858.0,0.001]
[1724172239513,0.427743,58859.0,58858.0,0.001]
[1724172240110,0.3598,58859.0,58858.0,0.067944]
[1724172240922,0.37001071,58859.0,58858.0,0.067944]
[1724172241516,0.01021071,58859.0,58858.0,0.067944]
[1724172241718,0.3610547,58864.0,58863.0,0.067938]
[1724172241919,0.37121774,58864.0,58863.0,0.067938]
[1724172242515,0.43915474,58864.0,58863.0,0.067938]
[1724172242822,0.067942,58860.0,58859.0,0.067943]
[1724172243023,0.066942,58860.0,58859.0,0.067943]
[1724172243223,0.066942,58860.0,58856.0,3.77]
[1724172243224,0.428738,58863.0,58856.0,3.77]
[1724172243427,0.3608,58858.0,58856.0,3.77]
[1724172244119,0.3598,58858.0,58857.0,0.6284347]
[1724172245422,0.3598,58858.0,58857.0,0.577665]
[1724172245828,0.3608,58863.0,58857.0,0.64561]
[1724172246130,0.0002547,58864.0,58863.0,0.067938]
[1724172246526,0.3610547,58864.0,58863.0,0.067938]
[1724172247025,0.0002547,58864.0,58863.0,0.496676]
[1724172247529,0.0002547,58864.0,58863.0,0.497676]
[1724172248126,0.0002547,58864.0,58863.0,0.429738]
[1724172248729,0.0002547,58864.0,58863.0,0.068938]
[1724172251330,0.0002547,58864.0,58863.0,0.646516]
[1724172251527,0.0002547,58864.0,58863.0,0.068938]
[1724172251830,0.067949,58855.0,58853.0,0.067949]
[1724172252133,0.7216,58854.0,58844.0,0.0507697]
[1724172252438,0.06795,58853.0,58852.0,0.06795]
[1724172253232,0.06695,58853.0,58852.0,0.06795]
[1724172253734,0.06695,58853.0,58852.0,0.06895]
[1724172254525,0.06695,58853.0,58852.0,3.83895]
[1724172255134,0.07720734,58853.0,58852.0,3.83895]
[1724172255631,0.01025734,58853.0,58852.0,3.83895]
[1724172255835,0.00232,58854.0,58853.0,0.06795]
[1724172256133,0.00232,58854.0,58852.0,3.8217697]
[1724172256134,0.067943,58860.0,58859.0,0.067943]
[1724172256729,0.01029488,58860.0,58859.0,0.067943]
[1724172257031,0.067958,58846.0,58836.0,0.05069564]
[1724172257236,0.067948,58855.0,58836.0,0.05069564]
[1724172257237,0.7216,58843.0,58836.0,0.05069564]
[1724172257538,0.789561,58843.0,58839.0,0.067965]
[1724172257835,0.067964,58841.0,58837.0,3.885268]
[1724172258232,0.0001552,58840.0,58837.0,3.885268]
[1724172258435,0.0681202,58840.0,58837.0,3.885268]
[1724172258634,0.0681202,58840.0,58838.0,0.067967]
[1724172258933,0.0001552,58840.0,58839.0,0.067966]
[1724172259239,0.3598,58843.0,58829.0,0.084499]
[1724172259533,0.067964,58841.0,58839.0,0.067966]
[1724172259933,0.067964,58841.0,58840.0,3.77]
[1724172260333,0.3598,58843.0,58840.0,3.77]
[1724172260535,0.3598,58843.0,58842.0,0.067963]
[1724172263135,0.3608,58859.0,58843.0,0.50984]
[1724172263340,0.44532824,58864.0,58857.0,0.3525]
[1724172263341,0.3608,58864.0,58857.0,0.3525]
[1724172263539,0.3608,58864.0,58863.0,0.3525]
[1724172263732,0.3608,58871.0,58866.0,0.067935]
[1724172263936,0.3608,58878.0,58863.0,3.77]
[1724172263937,0.067935,58866.0,58863.0,3.77]
[1724172264434,0.428721,58878.0,58863.0,3.77]
[1724172264435,0.06793,58871.0,58863.0,3.77]
[1724172264639,0.06818592,58870.0,58864.0,0.067936]
[1724172264832,0.00025492,58870.0,58864.0,0.067936]
[1724172265236,0.067935,58866.0,58863.0,3.77]
[1724172265538,0.428735,58866.0,58863.0,3.77]
[1724172265743,0.01,58864.0,58863.0,3.77]
[1724172266735,0.01,58864.0,58863.0,3.837938]
[1724172266931,0.00990426,58866.0,58863.0,3.77]
[1724172267135,0.004,58864.0,58863.0,3.77]
[1724172267340,0.00025492,58870.0,58863.0,3.77]
[1724172267341,0.00025492,58870.0,58863.0,4.33031619]
[1724172267535,0.00025492,58870.0,58869.0,0.3608]
[1724172267941,0.01048049,58870.0,58869.0,0.428731]
[1724172268948,0.00025492,58870.0,58869.0,0.428731]
[1724172269153,0.0489,58883.0,58877.0,0.067922]
[1724172269850,0.3710621,58879.0,58877.0,0.067922]
[1724172270058,0.067921,58878.0,58877.0,0.067922]
[1724172270649,0.067921,58878.0,58877.0,0.068922]
[1724172271951,0.0222621,58879.0,58878.0,0.067921]
[1724172272157,0.0152621,58879.0,58878.0,0.067921]
[1724172272554,0.0152621,58879.0,58878.0,3.837921]
[1724172272859,0.0102621,58879.0,58878.0,3.837921]
[1724172273044,0.00025492,58884.0,58878.0,3.837921]
[1724172273252,0.067918,58881.0,58879.0,0.06792]
[1724172273658,0.067919,58880.0,58879.0,0.06792]
[1724172275451,0.075919,58880.0,58879.0,0.06992]
[1724172275650,0.1087115,58880.0,58879.0,0.06992]
[1724172275851,0.1087115,58880.0,58879.0,0.06892]
[1724172276050,0.1167115,58880.0,58879.0,0.06992]
[1724172276262,0.0487925,58880.0,58879.0,0.06992]
[1724172276953,0.0487925,58880.0,58879.0,0.13784]
[1724172277147,0.0487925,58880.0,58879.0,0.43072]
[1724172277347,0.016,58880.0,58879.0,0.43072]
[1724172278150,0.016,58880.0,58879.0,0.49864]
[1724172279556,0.11864643,58888.0,58879.0,0.3628]
[1724172279755,0.11864643,58888.0,58884.0,0.067914]
[1724172279756,0.03278891,58887.0,58884.0,0.067914]
[1724172279963,0.03278891,58886.0,58885.0,0.135826]
[1724172280163,0.03278891,58886.0,58885.0,0.067913]
[1724172282265,0.03378891,58886.0,58885.0,0.068913]
[1724172282461,0.03378891,58886.0,58885.0,0.069913]
[1724172282666,0.002,58886.0,58885.0,0.069913]
[1724172283259,0.498624,58886.0,58885.0,0.002]
[1724172284163,0.5109854,58886.0,58885.0,0.002]
[1724172286665,0.4430734,58886.0,58885.0,0.002]
[1724172287554,0.0822734,58886.0,58885.0,0.069913]
[1724172291562,0.4430734,58886.0,58885.0,0.069913]
[1724172295577,0.3751614,58886.0,58885.0,0.069913]
[1724172295770,0.0143614,58886.0,58885.0,0.069913]
[1724172295969,0.0822734,58886.0,58885.0,0.002]
[1724172296159,0.4430734,58886.0,58885.0,0.002]
[1724172296365,0.5109854,58886.0,58885.0,0.002]
[1724172297769,0.63746125,58886.0,58885.0,0.002]
[1724172298578,0.56954925,58886.0,58885.0,0.002]
[1724172299872,1.51900796,58886.0,58873.0,0.0493]
[1724172300076,0.067926,58874.0,58873.0,0.0493]
[1724172300374,0.067931,58870.0,58869.0,0.067931]
[1724172300566,0.14229756,58870.0,58869.0,0.067931]
[1724172301272,0.14129756,58870.0,58869.0,0.067931]
[1724172301869,0.14129756,58870.0,58869.0,3.837931]
[1724172301870,0.14229756,58870.0,58869.0,3.837931]
[1724172302071,0.14330895,58870.0,58869.0,3.837931]
[1724172302371,0.14330895,58870.0,58869.0,3.77]
[1724172302372,0.51563767,58870.0,58869.0,3.77]
[1724172302574,0.68663767,58870.0,58869.0,3.771]
[1724172302771,0.75541281,58870.0,58869.0,3.772]
[1724172302977,0.56875494,58870.0,58869.0,3.772]
[1724172303478,0.51664252,58870.0,58869.0,3.772]
[1724172303678,0.51664252,58870.0,58869.0,3.839931]
[1724172304878,0.51864252,58870.0,58869.0,3.839931]
[1724172305275,0.52064252,58870.0,58869.0,3.839931]
[1724172305480,0.70705023,58870.0,58869.0,3.839931]
[1724172305674,0.63266743,58870.0,58869.0,3.839931]
[1724172305882,0.44625972,58870.0,58869.0,3.839931]
[1724172306277,0.37932872,58870.0,58869.0,3.839931]
[1724172306682,0.01852872,58870.0,58869.0,3.839931]
[1724172306978,0.01752872,58870.0,58869.0,4.200731]
[1724172307372,0.00025492,58875.0,58873.0,0.067926]
[1724172307574,0.00025492,58875.0,58874.0,0.067926]
[1724172308683,0.00025492,58875.0,58874.0,0.645412]
[1724172308884,0.37321836,58880.0,58879.0,0.06792]
[1724172309676,0.3608,58880.0,58879.0,0.18394]
[1724172309977,0.3608,58886.0,58885.0,0.067913]
[1724172310179,0.3608,58886.0,58885.0,3.837913]
[1724172311384,0.3608,58886.0,58885.0,3.838913]
[1724172311778,0.3638,58886.0,58885.0,3.839913]
[1724172312178,0.37645035,58886.0,58885.0,3.839913]
[1724172312485,0.58005897,58886.0,58885.0,0.002]
[1724172312677,0.51227435,58886.0,58885.0,0.002]
[1724172313578,1.18175435,58886.0,58885.0,0.002]
[1724172313784,1.58175435,58886.0,58885.0,0.002]
[1724172314186,0.44436235,58886.0,58885.0,0.002]
[1724172314883,0.44436235,58886.0,58885.0,0.069913]
[1724172315183,0.01565035,58886.0,58885.0,0.069913]
[1724172318381,0.01565035,58886.0,58885.0,0.430713]
[1724172320689,0.003,58886.0,58885.0,0.498626]
[1724172322585,0.10167693,58890.0,58889.0,0.135816]
[1724172322789,0.00025492,58891.0,58890.0,0.135814]
[1724172323093,0.00025492,58891.0,58890.0,0.496614]
[1724172323489,0.08483767,58891.0,58890.0,0.496614]
[1724172323787,0.08483767,58891.0,58890.0,4.266614]
[1724172323989,0.09313194,58896.0,58895.0,0.135802]
[1724172324288,0.3608,58907.0,58906.0,0.067889]
[1724172324489,0.42109324,58907.0,58906.0,0.067889]
[1724172324684,0.04012973,58907.0,58906.0,3.837889]
[1724172325993,0.01261623,58907.0,58906.0,3.837889]
[1724172326192,0.0002547,58912.0,58911.0,0.067883]
[1724172326782,0.0002547,58912.0,58911.0,0.496566]
[1724172327183,0.06776396,58912.0,58911.0,0.428683]
[1724172327383,0.05083809,58912.0,58911.0,0.428683]
[1724172327590,0.0002547,58912.0,58911.0,0.430683]
[1724172328695,0.0002547,58912.0,58905.0,0.067889]
[1724172328696,0.3610547,58912.0,58905.0,0.067889]
[1724172328895,0.067888,58907.0,58901.0,0.0477547]
[1724172329082,0.0002547,58912.0,58903.0,0.3608]
[1724172329288,0.01278063,58912.0,58911.0,0.067883]
[1724172330787,0.01278063,58912.0,58911.0,0.068883]
[1724172331580,0.01278063,58912.0,58911.0,0.069883]
[1724172331780,0.0002547,58912.0,58911.0,3.839883]
[1724172331986,0.3608,58919.0,58911.0,4.349123]
[1724172332285,0.3608,58919.0,58918.0,0.067875]
[1724172333280,0.428674,58919.0,58912.0,0.0473]
[1724172333493,0.067877,58917.0,58916.0,0.067877]
[1724172333694,0.067879,58914.0,58911.0,3.771]
[1724172333891,0.067879,58914.0,58913.0,0.067881]
[1724172336093,0.068879,58914.0,58913.0,0.068881]
[1724172336293,0.001,58914.0,58913.0,0.068881]
[1724172336800,0.05155985,58917.0,58916.0,0.067877]
[1724172337089,0.05055985,58918.0,58917.0,0.067876]
[1724172337503,0.067877,58916.0,58914.0,0.067879]
[1724172337691,0.05054716,58915.0,58914.0,0.067879]
[1724172337884,0.11742416,58916.0,58914.0,0.067879]
[1724172338390,0.11742416,58916.0,58913.0,0.001]
[1724172338391,0.066877,58916.0,58915.0,0.067878]
[1724172338593,0.067879,58914.0,58913.0,0.001]
[1724172338789,0.067881,58913.0,58912.0,0.067881]
[1724172338993,0.165981,58913.0,58912.0,0.067881]
[1724172339495,0.067877,58916.0,58915.0,0.067878]
[1724172339792,0.207877,58916.0,58915.0,0.067878]
[1724172340110,0.208877,58916.0,58915.0,0.068878]
[1724172340299,0.210877,58916.0,58915.0,0.068878]
[1724172340989,0.208877,58916.0,58915.0,0.068878]
[1724172341191,0.143,58916.0,58915.0,0.069878]
[1724172341995,0.05357992,58916.0,58915.0,0.069878]
[1724172342195,0.003,58916.0,58915.0,3.838878]
[1724172342393,0.004,58916.0,58915.0,3.839878]
[1724172342899,0.002,58916.0,58915.0,3.838878]
[1724172343195,0.005,58916.0,58915.0,3.839878]
[1724172345100,0.37326907,58919.0,58918.0,0.067875]
[1724172345296,0.3608,58919.0,58918.0,0.067875]
[1724172345698,0.3608,58919.0,58918.0,3.837875]
[1724172346301,0.3608,58919.0,58918.0,3.838875]
[1724172346302,0.3628,58919.0,58918.0,3.838875]
[1724172346510,0.5228,58919.0,58918.0,3.838875]
[1724172346698,0.5706,58919.0,58918.0,3.838875]
[1724172346901,0.638474,58919.0,58918.0,3.838875]
[1724172347799,0.618474,58919.0,58918.0,0.002]
[1724172348397,0.478474,58919.0,58918.0,0.069875]
[1724172348612,0.430674,58919.0,58918.0,0.069875]
[1724172349238,0.3628,58919.0,58918.0,0.069875]
[1724172350935,0.44719369,58919.0,58918.0,0.069875]
[1724172351223,0.3628,58919.0,58918.0,0.069875]
[1724172352513,0.39030668,58919.0,58918.0,0.069875]
[1724172352911,0.39030668,58919.0,58918.0,0.13775]
[1724172353509,0.39030668,58919.0,58918.0,0.18475]
[1724172354396,0.49151878,58919.0,58918.0,0.18475]
[1724172356194,0.49151878,58919.0,58918.0,0.116875]
[1724172356407,0.62726678,58919.0,58918.0,0.002]
[1724172356602,0.72882754,58919.0,58918.0,0.002]
[1724172357105,0.067881,58913.0,58912.0,0.067882]
[1724172357310,0.0953905,58913.0,58912.0,0.067882]
[1724172358009,0.067881,58913.0,58912.0,0.11844487]
[1724172358505,0.067881,58913.0,58912.0,0.067882]
[1724172358898,0.13568,58913.0,58912.0,0.067882]
[1724172359108,0.05084443,58913.0,58911.0,0.06745633]
[1724172359307,0.05084459,58914.0,58912.0,0.13533833]
[1724172359505,0.05084459,58915.0,58914.0,0.135758]
[1724172360116,0.05084459,58916.0,58915.0,0.135756]
[1724172360305,0.067799,58920.0,58916.0,0.135754]
[1724172360306,0.05084459,58917.0,58916.0,0.135754]
[1724172360503,0.067799,58920.0,58919.0,0.067874]
[1724172361602,0.067799,58920.0,58919.0,0.068874]
[1724172361603,0.069799,58920.0,58919.0,0.068874]
[1724172361806,0.002,58920.0,58919.0,0.068874]
[1724172362409,0.498546,58920.0,58919.0,0.001]
[1724172362611,0.45818083,58920.0,58919.0,0.001]
[1724172362916,0.430673,58920.0,58919.0,0.001]
[1724172363110,0.45818194,58920.0,58919.0,0.002]
[1724172363416,0.45818189,58920.0,58919.0,0.002]
[1724172363612,0.430673,58920.0,58919.0,0.002]
[1724172363812,0.45818173,58920.0,58919.0,0.002]
[1724172364002,0.430673,58920.0,58919.0,0.002]
[1724172364208,0.52605489,58920.0,58919.0,0.002]
[1724172364508,0.67605489,58920.0,58919.0,0.002]